bitfinex/quotes_ETHUSD_20250129
["timestamp","ask_amount","ask_price","bid_price","bid_amount"]
[1738115700137,3.21317,3112.2,3111.6,3.21369]
[1738115700690,3.24560617,3112.2,3111.6,3.21369]
[1738115700892,3.21317,3112.2,3111.6,6.4274]
[1738115701079,3.21317,3112.2,3111.6,3.21369]
[1738115701527,3.24560617,3112.2,3111.6,3.21369]
[1738115701819,0.7845,3112.0,3111.5,0.55]
[1738115702683,0.7845,3112.0,3111.4,7.20965]
[1738115702684,3.21353,3111.9,3111.4,0.7818]
[1738115702912,3.21376,3111.7,3111.2,0.7719]
[1738115703102,3.21376,3111.7,3111.0,3.21431]
[1738115703103,0.86553617,3111.6,3111.0,3.98621]
[1738115703303,3.21394,3111.5,3111.0,3.98621]
[1738115705920,3.21394,3111.5,3111.0,0.7719]
[1738115706616,3.21416,3111.3,3110.8,3.21458]
[1738115707010,3.21416,3111.3,3110.7,0.8258]
[1738115707218,3.21416,3111.3,3110.7,4.04043]
[1738115707743,0.78563617,3111.2,3110.7,0.8258]
[1738115708024,3.2143,3111.1,3110.5,4.04069]
[1738115708222,0.03243617,3111.0,3110.4,3.21499]
[1738115708390,3.2144,3111.0,3110.4,6.42994]
[1738115708590,3.24683617,3111.0,3110.4,3.21495]
[1738115708824,3.24683617,3111.0,3110.5,0.3010649]
[1738115709012,0.7532,3110.9,3110.5,0.3010649]
[1738115710421,3.96772,3110.9,3110.4,3.21495]
[1738115710626,3.96772,3110.9,3110.4,6.42989]
[1738115710627,0.7532,3110.9,3110.4,6.42989]
[1738115710823,0.7532,3110.9,3110.4,7.1586738]
[1738115711324,0.7532,3110.9,3110.4,3.9437238]
[1738115711530,0.7532,3110.9,3110.5,3.21485]
[1738115711917,0.7532,3110.9,3110.6,3.21479]
[1738115712298,5.36472902,3111.2,3110.7,3.21465]
[1738115712498,6.11792902,3111.2,3110.7,3.21465]
[1738115714032,6.11792902,3111.2,3110.7,6.42929]
[1738115714207,6.11792902,3111.2,3110.7,7.19979]
[1738115714833,5.36472902,3111.2,3111.1,3.21429]
[1738115715911,5.36472902,3111.2,3111.1,3.98479]
[1738115718138,3.0,3111.7,3111.1,3.98479]
[1738115718351,3.0,3111.7,3111.2,3.21414]
[1738115718506,3.0,3111.7,3111.1,3.98469]
[1738115718711,4.27083707,3111.7,3111.1,3.98469]
[1738115718923,4.2384009,3111.7,3111.1,3.98469]
[1738115719322,0.772,3111.5,3110.9,3.21447]
[1738115719520,3.2141,3111.3,3110.7,3.21469]
[1738115720031,3.21419,3111.2,3110.7,3.21469]
[1738115720438,3.98593,3111.5,3110.7,3.21469]
[1738115720649,3.21411,3111.3,3110.7,3.21469]
[1738115721110,3.21411,3111.3,3110.8,3.21455]
[1738115722042,3.98593,3111.5,3111.1,3.21423]
[1738115722043,0.772,3111.5,3111.1,3.21423]
[1738115723541,0.772,3111.5,3111.1,3.21421]
[1738115725745,0.772,3111.5,3111.2,3.21418]
[1738115725949,3.0,3111.7,3111.3,3.21405]
[1738115726155,3.0,3111.7,3111.4,0.8058]
[1738115727149,3.0,3111.7,3111.2,0.8176]
[1738115727447,4.0373,3111.9,3111.3,3.21407]
[1738115727743,0.8238,3111.9,3111.4,3.21398]
[1738115728309,4.03731,3111.9,3111.3,3.21407]
[1738115730625,4.03731,3111.9,3111.3,6.42808]
[1738115731350,4.03731,3111.9,3111.3,6.42804]
[1738115731652,4.03731,3111.9,3111.3,3.21401]
[1738115732244,4.03731,3111.9,3111.3,6.83440483]
[1738115732635,0.8238,3111.9,3111.3,3.62038483]
[1738115732953,0.8238,3111.9,3111.5,3.21388]
[1738115734249,0.8238,3111.9,3111.3,3.62038483]
[1738115734425,4.03729,3111.9,3111.3,3.21401]
[1738115735126,4.03729,3111.9,3111.4,3.21395]
[1738115736253,3.21349,3111.9,3111.4,3.21395]
[1738115740896,3.99088,3112.1,3111.5,3.21386]
[1738115741081,0.7776,3112.1,3111.7,3.21366]
[1738115742390,0.7776,3112.1,3111.6,0.8123]
[1738115742712,0.7776,3112.1,3111.6,4.02607]
[1738115747053,3.9909,3112.1,3111.6,0.8123]
[1738115747254,0.03243617,3112.0,3111.5,3.21379]
[1738115748056,3.9909,3112.1,3111.5,3.21379]
[1738115748356,4.02333617,3112.1,3111.5,3.21379]
[1738115748555,7.23667617,3112.1,3111.5,3.21379]
[1738115748770,3.9909,3112.1,3111.5,3.21379]
[1738115749008,4.02333617,3112.1,3111.5,3.21379]
[1738115749306,3.9909,3112.1,3111.6,3.21377]
[1738115750304,0.7776,3112.1,3111.7,3.21362]
[1738115750868,0.7776,3112.1,3112.0,3.21336]
[1738115751067,3.2127,3112.7,3112.0,3.21336]
[1738115751068,0.7986,3112.4,3112.1,3.21326]
[1738115751381,4.0113,3112.7,3112.0,3.21336]
[1738115751582,4.0113,3112.7,3112.0,3.615016]
[1738115752305,4.0113,3112.7,3112.1,3.21324]
[1738115753294,3.21285,3112.5,3112.0,0.401656]
[1738115753499,3.24528617,3112.5,3112.0,0.401656]
[1738115754411,3.24528617,3112.5,3112.0,3.615016]
[1738115754820,0.03243617,3112.5,3112.0,3.615016]
[1738115755003,3.24519617,3112.6,3112.0,3.615016]
[1738115755675,3.21276,3112.6,3112.0,3.615016]
[1738115757426,4.0113,3112.7,3112.0,3.615016]
[1738115757608,4.0113,3112.7,3112.1,3.65826467]
[1738115758317,3.21277,3112.6,3112.1,0.44503467]
[1738115758629,3.21277,3112.6,3112.0,3.21336]
[1738115758996,4.0113,3112.7,3112.1,3.24536067]
[1738115758997,0.7986,3112.7,3112.1,3.24536067]
[1738115759197,0.7986,3112.7,3112.3,3.21305]
[1738115761124,0.7986,3112.7,3112.1,3.21323]
[1738115761445,0.7986,3112.7,3112.2,3.21313]
[1738115762362,0.7986,3112.7,3112.1,3.21318]
[1738115762524,0.7986,3112.7,3112.3,3.21304]
[1738115765637,0.7986,3112.7,3112.1,3.21321]
[1738115765815,0.7986,3112.7,3112.2,3.21312]
[1738115766108,0.7986,3112.7,3112.1,3.614851]
[1738115766426,0.7986,3112.7,3112.1,3.6469795]
[1738115766634,0.7986,3112.7,3112.1,3.614851]
[1738115767236,0.7986,3112.7,3112.3,3.21305]
[1738115768225,3.21259,3112.8,3112.3,3.21305]
[1738115768226,3.21259,3112.8,3112.3,4.04425]
[1738115768528,3.21259,3112.8,3112.3,4.8101601]
[1738115769742,3.21259,3112.8,3112.3,3.9789601]
[1738115769940,3.21259,3112.8,3112.1,4.400451]
[1738115770162,3.21259,3112.8,3112.1,4.400431]
[1738115770470,3.21259,3112.8,3112.2,3.21312]
[1738115771239,3.21259,3112.8,3112.1,4.400431]
[1738115771398,0.8112,3112.5,3111.9,3.21344]
[1738115771548,0.84363617,3112.5,3112.0,3.615854]
[1738115773250,0.8112,3112.5,3112.0,3.615854]
[1738115773883,0.84363617,3112.5,3112.0,3.615854]
[1738115774502,3.21302,3112.4,3111.7,3.2136]
[1738115774797,0.7747,3112.2,3111.5,3.21382]
[1738115775023,3.24578617,3112.1,3111.5,3.21382]
[1738115775390,3.21335,3112.1,3111.6,3.21375]
[1738115775797,0.7747,3112.2,3111.6,3.21375]
[1738115776001,3.98788,3112.2,3111.6,3.938047]
[1738115777319,3.98788,3112.2,3111.6,3.21375]
[1738115778019,3.98788,3112.2,3111.7,3.21367]
[1738115778319,0.7747,3112.2,3111.7,3.21367]
[1738115778508,0.7747,3112.2,3111.8,3.21354]
[1738115779319,3.98787,3112.2,3111.6,3.21369]
[1738115779528,0.7747,3112.2,3111.7,3.21365]
[1738115781672,0.7747,3112.2,3111.7,6.42725]
[1738115782013,0.7747,3112.2,3111.8,3.21356]
[1738115783114,0.7747,3112.2,3111.7,6.4272]
[1738115784413,0.7747,3112.2,3111.7,3.2136]
[1738115784723,0.7747,3112.2,3111.8,3.21355]
[1738115784928,0.7747,3112.2,3111.7,3.2136]
[1738115785410,0.7747,3112.2,3111.8,3.21356]
[1738115785617,0.7747,3112.2,3111.7,3.2136]
[1738115785820,0.03243617,3112.1,3111.7,3.2136]
[1738115786003,0.7747,3112.2,3111.7,0.642746]
[1738115786205,0.03243617,3112.1,3111.7,3.21366]
[1738115786634,0.7747,3112.2,3111.7,3.21366]
[1738115787837,0.03243617,3112.1,3111.7,3.21366]
[1738115788037,0.03243617,3112.1,3111.5,3.21382]
[1738115788239,0.7562,3112.0,3111.5,3.21382]
[1738115788850,0.78863617,3112.0,3111.5,3.21382]
[1738115789152,0.7562,3112.0,3111.5,6.4276]
[1738115789527,0.7562,3112.0,3111.5,3.21378]
[1738115789726,0.7562,3112.0,3111.7,3.21361]
[1738115791061,0.7562,3112.0,3111.8,3.21356]
[1738115791427,0.7562,3112.0,3111.7,3.21361]
[1738115791846,0.03243617,3111.9,3111.3,3.21407]
[1738115792156,3.96778,3111.8,3111.3,3.21407]
[1738115792359,0.7542,3111.8,3111.4,3.21391]
[1738115793756,0.7542,3111.8,3111.5,3.21386]
[1738115796057,0.7542,3111.8,3111.6,3.21378]
[1738115801694,0.7542,3111.8,3111.3,3.21403]
[1738115801990,0.7542,3111.8,3111.5,3.21388]
[1738115803090,0.7542,3111.8,3111.3,3.610503]
[1738115803393,0.7542,3111.8,3111.4,3.21396]
[1738115804194,0.7542,3111.8,3111.3,3.610503]
[1738115804391,0.78663617,3111.8,3111.3,3.610493]
[1738115804559,0.78663617,3111.8,3111.3,6.42804]
[1738115804760,0.7542,3111.8,3111.3,3.21402]
[1738115805059,0.7542,3111.8,3111.4,3.21392]
[1738115808416,0.8179,3111.5,3111.0,3.21437]
[1738115809002,0.8179,3111.5,3111.1,3.21428]
[1738115809195,0.8179,3111.5,3111.2,3.21417]
[1738115811017,5.36472902,3111.7,3111.4,3.21395]
[1738115811018,6.13192902,3111.7,3111.4,3.21395]
[1738115815320,6.13192902,3111.7,3111.2,0.8014]
[1738115815507,6.13192902,3111.7,3111.3,3.21407]
[1738115815914,6.13192902,3111.7,3111.1,3.535638]
[1738115816225,6.13192902,3111.7,3111.1,3.21421]
[1738115816760,6.13192902,3111.7,3111.2,3.21412]
[1738115817068,6.13192902,3111.7,3111.0,0.7956]
[1738115817224,6.13192902,3111.7,3111.3,3.214]
[1738115817647,6.13192902,3111.7,3111.3,6.42801]
[1738115817862,6.13192902,3111.7,3111.3,3.214]
[1738115819057,9.37805519,3111.7,3111.1,3.21424]
[1738115819359,6.13192902,3111.7,3111.2,3.21418]
[1738115821027,6.13192902,3111.7,3111.3,3.21407]
[1738115824675,6.13192902,3111.7,3111.1,3.21427]
[1738115824857,0.8066,3111.5,3111.1,3.21427]
[1738115825173,0.8066,3111.5,3111.0,3.21438]
[1738115825531,0.03243617,3111.4,3111.0,3.21438]
[1738115825734,4.05292617,3111.5,3111.0,3.21438]
[1738115826161,4.02049,3111.5,3111.0,3.21438]
[1738115826670,0.03243617,3111.4,3111.0,3.21438]
[1738115828254,4.02069,3111.3,3110.8,3.2146]
[1738115828446,4.02069,3111.3,3110.6,3.96836]
[1738115828447,0.03243617,3111.2,3110.6,3.96836]
[1738115828649,3.96601,3111.1,3110.6,3.21476]
[1738115828849,0.03243617,3111.0,3110.6,3.21476]
[1738115831065,0.7517,3111.1,3110.6,3.857732]
[1738115831270,0.7517,3111.1,3110.6,3.21476]
[1738115832169,0.7517,3111.1,3110.8,3.21456]
[1738115832871,0.7517,3111.1,3110.6,3.21476]
[1738115833077,0.7517,3111.1,3110.6,6.42949]
[1738115833455,0.7517,3111.1,3110.7,3.2147]
[1738115833972,0.7517,3111.1,3110.6,3.21473]
[1738115834275,0.7517,3111.1,3110.6,6.42948]
[1738115835604,0.7517,3111.1,3110.6,3.21473]
[1738115835989,0.7517,3111.1,3110.6,6.42947]
[1738115836352,0.7517,3111.1,3110.6,3.21473]
[1738115836663,0.7517,3111.1,3110.7,3.2147]
[1738115838655,0.7517,3111.1,3110.8,3.2146]
[1738115838853,0.7517,3111.1,3110.8,3.64261165]
[1738115839162,0.7517,3111.1,3110.8,3.2146]
[1738115840489,0.7517,3111.1,3110.7,4.00919]
[1738115841093,5.36472902,3111.2,3110.8,3.21451]
[1738115842366,5.36472902,3111.2,3110.7,3.21469]
[1738115844095,5.36472902,3111.2,3110.8,3.21452]
[1738115846008,0.7727,3111.3,3110.8,3.21452]
[1738115846169,0.7727,3111.3,3110.9,3.53914639]
[1738115846373,0.7727,3111.3,3110.8,3.21452]
[1738115847125,3.98681,3111.3,3110.8,3.21452]
[1738115848822,0.7727,3111.3,3110.8,3.21452]
[1738115849812,3.98679,3111.3,3110.8,3.21452]
[1738115851692,0.7727,3111.3,3110.8,3.21452]
[1738115851894,0.7727,3111.3,3110.8,3.86066339]
[1738115853506,3.98682,3111.3,3110.8,3.86066339]
[1738115853804,3.98682,3111.3,3110.8,3.21452]
[1738115855626,6.13962902,3111.6,3111.1,3.21427]
[1738115855829,6.13962902,3111.6,3111.2,3.21413]
[1738115855985,5.36472902,3111.6,3111.3,3.21403]
[1738115856325,6.13482902,3112.0,3111.3,0.81113808]
[1738115856528,5.36472902,3112.0,3111.6,3.21369]
[1738115856934,5.36472902,3112.0,3111.6,3.88858766]
[1738115857242,5.36472902,3112.0,3111.7,4.0201]
[1738115857444,3.21305,3112.3,3111.7,4.0201]
[1738115857646,3.96587,3112.4,3111.8,3.21357]
[1738115858116,3.0,3112.3,3111.8,3.21357]
[1738115858849,0.7529,3112.4,3112.0,6.42664]
[1738115859050,3.2128,3112.6,3112.0,6.42664]
[1738115859368,0.64327805,3112.9,3112.4,3.21294]
[1738115860254,0.64327805,3112.9,3112.3,0.8065]
[1738115860410,3.21265,3112.7,3112.3,0.8065]
[1738115860908,0.64327805,3112.9,3112.3,0.8065]
[1738115861114,3.85577805,3112.9,3112.3,1.24379705]
[1738115861763,7.06828805,3112.9,3112.3,1.24379705]
[1738115861944,3.21257,3112.8,3112.3,1.24379705]
[1738115862267,3.21257,3112.8,3112.3,1.21166973]
[1738115863271,3.85577805,3112.9,3112.3,4.45682705]
[1738115863959,7.06830805,3112.9,3112.3,1.21166973]
[1738115864166,3.85577805,3112.9,3112.3,4.01955]
[1738115864335,3.85577805,3112.9,3112.3,4.05167732]
[1738115864854,3.85577805,3112.9,3112.4,3.21294]
[1738115865054,0.64327805,3112.9,3112.5,3.21277]
[1738115865262,0.64327805,3112.9,3112.6,0.642571]
[1738115865568,3.21227,3113.1,3112.6,0.642571]
[1738115865750,3.21227,3113.1,3112.3,0.83862636]
[1738115865941,3.21244,3112.9,3112.3,4.01947]
[1738115866264,0.7643,3112.6,3111.9,0.8197]
[1738115866565,3.21303,3112.4,3111.9,0.8197]
[1738115866767,3.24546617,3112.4,3111.9,0.8197]
[1738115867369,3.21286,3112.5,3111.9,0.8197]
[1738115867370,3.21286,3112.5,3111.9,4.0331]
[1738115868268,3.21286,3112.5,3111.9,0.8197]
[1738115868570,3.21286,3112.5,3112.0,3.21335]
[1738115870146,6.45824617,3112.5,3111.9,0.8197]
[1738115870368,7.14806462,3112.5,3111.9,0.8197]
[1738115870527,3.93511462,3112.5,3111.9,0.8197]
[1738115870729,3.96755079,3112.5,3111.9,0.8197]
[1738115870935,3.93511462,3112.5,3111.9,4.03309]
[1738115871256,3.24529617,3112.5,3111.9,4.03309]
[1738115871559,3.21286,3112.5,3111.9,4.03309]
[1738115872983,3.21286,3112.5,3111.9,0.8197]
[1738115873144,0.7643,3112.6,3112.0,3.21336]
[1738115873660,0.7643,3112.6,3112.1,3.21325]
[1738115874035,3.97705,3112.6,3112.0,3.21336]
[1738115874375,0.7643,3112.6,3112.0,3.21336]
[1738115875274,0.7643,3112.6,3112.0,6.42665]
[1738115875576,0.7643,3112.6,3112.0,3.21329]
[1738115875954,0.7643,3112.6,3111.9,0.85183082]
[1738115876132,0.7643,3112.6,3112.2,3.21308]
[1738115877106,5.36472902,3112.8,3112.2,3.855724]
[1738115877294,5.36472902,3112.8,3112.4,3.21288]
[1738115877916,5.36472902,3112.8,3112.3,0.7694]
[1738115878203,5.36472902,3112.8,3112.3,3.98241]
[1738115880308,5.36472902,3112.8,3112.4,3.21293]
[1738115880672,5.36472902,3112.8,3112.3,0.7694]
[1738115880871,8.57729902,3112.8,3112.2,3.21308]
[1738115881095,8.57729902,3112.8,3112.2,3.938734]
[1738115881726,3.21257,3112.8,3112.2,3.938734]
[1738115882556,0.8161,3112.9,3112.2,3.938734]
[1738115882689,0.7734,3113.1,3112.4,3.21287]
[1738115882893,0.7734,3113.1,3112.4,3.6883424]
[1738115883198,0.7734,3113.1,3112.6,3.21273]
[1738115886006,5.36472902,3113.2,3112.8,3.21244]
[1738115886207,5.36472902,3113.2,3113.0,3.21233]
[1738115887551,3.99152,3113.5,3112.9,0.7617]
[1738115888039,0.03243617,3113.4,3112.8,3.21244]
[1738115888216,0.785,3113.2,3112.6,3.21272]
[1738115889220,3.21223,3113.1,3112.6,3.21272]
[1738115891409,0.785,3113.2,3112.6,3.21272]
[1738115891610,3.99713,3113.2,3112.6,3.21272]
[1738115891844,0.785,3113.2,3112.7,3.21263]
[1738115892978,3.99714,3113.2,3112.7,3.21263]
[1738115893177,4.72130462,3113.2,3112.7,3.21263]
[1738115893486,3.21223,3113.1,3112.5,4.00789]
[1738115893684,3.21223,3113.1,3112.6,3.21271]
[1738115895053,0.785,3113.2,3112.7,3.2126]
[1738115896086,0.785,3113.2,3112.8,3.21253]
[1738115896747,6.11972902,3113.4,3112.9,3.21241]
[1738115896946,6.11972902,3113.4,3113.0,3.21232]
[1738115899405,6.11972902,3113.4,3113.1,3.21216]
[1738115899705,0.65756419,3113.5,3113.1,3.21216]
[1738115900603,0.65756419,3113.5,3113.0,3.21232]
[1738115900999,0.765,3113.6,3113.1,3.21218]
[1738115901299,0.765,3113.6,3113.1,3.93962206]
[1738115902176,1.39808889,3113.6,3113.1,3.93962206]
[1738115903199,4.60982889,3113.6,3113.1,3.93962206]
[1738115903522,4.60982889,3113.6,3113.1,3.21218]
[1738115904079,1.39808889,3113.6,3113.1,3.21218]
[1738115904379,1.39808889,3113.6,3113.1,6.42433]
[1738115904563,1.39808889,3113.6,3113.1,3.21215]
[1738115905205,1.39808889,3113.6,3113.3,3.21194]
[1738115905370,0.63308889,3113.6,3113.3,3.96604]
[1738115906826,0.63308889,3113.6,3113.5,3.21181]
[1738115907032,0.7984,3113.9,3113.5,3.21181]
[1738115907193,0.7984,3113.9,3113.6,3.21168]
[1738115907393,0.7984,3113.9,3113.5,3.21181]
[1738115911622,4.6480027,3114.1,3113.6,3.21171]
[1738115912353,4.6480027,3114.1,3113.6,0.642352]
[1738115912912,4.0043,3114.1,3113.6,0.642352]
[1738115913113,3.2113,3114.0,3113.6,0.642352]
[1738115913313,3.2113,3114.0,3113.5,3.21181]
[1738115914862,3.21155,3113.8,3113.3,3.96609]
[1738115915065,0.03243617,3113.7,3113.1,4.0452]
[1738115915262,0.03243617,3113.7,3113.2,3.21212]
[1738115915551,3.21155,3113.8,3113.2,3.21212]
[1738115915937,4.06837617,3113.7,3113.1,3.2122]
[1738115916250,4.03594,3113.7,3113.1,7.150121]
[1738115917412,4.03594,3113.7,3113.1,3.937921]
[1738115919125,3.21174,3113.6,3113.1,3.21216]
[1738115919454,3.24417617,3113.6,3113.1,3.21216]
[1738115919671,3.21174,3113.6,3113.1,3.21216]
[1738115919873,4.03594,3113.7,3113.1,3.21216]
[1738115920224,0.03243617,3113.6,3113.1,3.21216]
[1738115920435,4.03594,3113.7,3113.1,3.21216]
[1738115920436,4.03594,3113.7,3113.1,3.91215124]
[1738115921458,0.8243,3113.7,3113.1,3.91215124]
[1738115921628,0.8243,3113.7,3113.3,3.21192]
[1738115921956,0.8243,3113.7,3113.4,3.21192]
[1738115925866,0.7576,3114.0,3113.5,3.21173]
[1738115926572,0.7576,3114.0,3113.5,6.42347]
[1738115927729,0.7576,3114.0,3113.5,3.21173]
[1738115927930,0.7576,3114.0,3113.5,3.930951]
[1738115930832,0.7576,3114.0,3113.5,7.142691]
[1738115931169,9.35494902,3114.2,3113.6,3.21163]
[1738115931767,3.21125,3114.1,3113.5,3.930951]
[1738115934773,3.21125,3114.1,3113.6,3.21171]
[1738115934974,3.21125,3114.1,3113.6,4.0060376]
[1738115935888,3.21125,3114.1,3113.4,0.7685]
[1738115936092,3.21125,3114.1,3113.5,3.21181]
[1738115936292,3.21142,3113.9,3113.1,3.21218]
[1738115936488,3.21162,3113.7,3113.1,3.21215]
[1738115936834,3.21162,3113.7,3113.1,3.610545]
[1738115937842,0.8215,3113.8,3113.3,3.21202]
[1738115938420,4.03302,3113.8,3113.2,3.24421788]
[1738115938703,4.03302,3113.8,3113.1,3.610545]
[1738115938704,0.7669,3113.5,3113.1,3.610545]
[1738115939762,0.7669,3113.5,3113.2,3.2121]
[1738115940089,0.8032,3114.0,3113.4,3.21185]
[1738115940282,0.8032,3114.0,3113.6,3.21169]
[1738115940689,3.24386617,3113.9,3113.3,0.7972]
[1738115940993,3.21143,3113.9,3113.3,0.03211739]
[1738115941172,3.21143,3113.9,3113.2,3.24420691]
[1738115941375,3.21143,3113.9,3113.2,6.42413]
[1738115941995,3.21143,3113.9,3113.3,3.21195]
[1738115950668,3.21143,3113.9,3113.3,3.21197]
[1738115951214,3.21161,3113.7,3113.2,3.21204]
[1738115951917,0.8274,3113.8,3113.2,3.21204]
[1738115952096,0.8274,3113.8,3113.4,3.21191]
[1738115953880,0.8274,3113.8,3113.4,3.96901]
[1738115954081,0.8274,3113.8,3113.4,3.21191]
[1738115955716,0.8274,3113.8,3113.2,7.18119]
[1738115955915,0.8274,3113.8,3113.3,3.21196]
[1738115956066,0.8274,3113.8,3113.4,3.2119]
[1738115958495,0.8274,3113.8,3113.5,3.2118]
[1738115958793,0.8276,3114.0,3113.5,3.2118]
[1738115958996,0.8276,3114.0,3113.6,3.21164]
[1738115959161,0.8276,3114.0,3113.6,3.85720551]
[1738115960988,5.36472902,3114.2,3113.8,3.21146]
[1738115961164,0.8039,3114.3,3114.0,3.21126]
[1738115964134,8.57531902,3114.7,3114.1,3.21117]
[1738115964330,0.7757,3114.6,3114.1,0.67756229]
[1738115964487,0.7757,3114.6,3114.2,3.21108]
[1738115966025,0.7757,3114.6,3114.3,3.21097]
[1738115966192,0.7757,3114.6,3114.2,3.21108]
[1738115966916,0.7757,3114.6,3114.1,0.64545396]
[1738115967115,0.7757,3114.6,3114.0,7.17433]
[1738115967514,0.7757,3114.6,3114.0,3.21121]
[1738115967515,3.21079,3114.5,3114.0,3.21121]
[1738115967688,3.21106,3114.3,3113.8,0.7519]
[1738115967884,3.98679,3114.2,3113.7,3.21155]
[1738115968488,0.7757,3114.2,3113.7,3.24366256]
[1738115968702,0.7757,3114.2,3113.7,3.96439782]
[1738115968919,0.7757,3114.2,3113.7,3.93228526]
[1738115968920,3.98679,3114.2,3113.7,3.93228526]
[1738115969121,3.98679,3114.2,3113.7,0.72073526]
[1738115969326,3.24364617,3114.1,3113.3,4.01069]
[1738115969624,6.423,3113.9,3113.3,3.21193]
[1738115969829,3.2115,3113.9,3113.3,3.21193]
[1738115970389,3.2115,3113.9,3113.4,0.03211685]
[1738115971344,3.2115,3113.9,3113.3,3.21193]
[1738115971539,3.2115,3113.9,3113.1,4.01084]
[1738115971540,3.21156,3113.8,3113.1,4.01084]
[1738115971704,3.21156,3113.8,3113.2,4.04701274]
[1738115971902,0.8232,3113.7,3113.2,4.04701274]
[1738115972107,0.8232,3113.7,3113.3,3.24411701]
[1738115972514,0.8232,3113.7,3113.3,3.212]
[1738115973049,0.8232,3113.7,3113.2,0.83497274]
[1738115973216,0.8232,3113.7,3113.2,4.04709274]
[1738115973733,0.8232,3113.7,3113.2,4.04707274]
[1738115975423,4.03481,3113.7,3113.1,3.21214]
[1738115975834,4.03481,3113.7,3113.2,3.21209]
[1738115977543,0.8232,3113.7,3113.2,3.21209]
[1738115979651,0.8232,3113.7,3113.3,3.21202]
[1738115982830,0.79123617,3113.7,3112.9,3.21239]
[1738115983057,3.97063,3113.5,3112.9,3.21239]
[1738115983355,0.64803269,3113.7,3112.9,3.21239]
[1738115983356,0.7588,3113.3,3112.9,3.21239]
[1738115985728,0.7588,3113.3,3113.0,3.2123]
[1738115988126,0.7588,3113.3,3112.9,3.21239]
[1738115988851,0.7588,3113.3,3113.0,3.21231]
[1738115990854,0.7588,3113.3,3112.9,3.21242]
[1738115991354,0.7588,3113.3,3112.9,3.854912]
[1738115992756,0.7588,3113.3,3112.9,0.642492]
[1738115993058,0.7588,3113.3,3113.0,3.21232]
[1738115994756,0.7588,3113.3,3112.9,0.642492]
[1738115995146,0.7588,3113.3,3112.9,3.854902]
[1738115996893,0.7588,3113.3,3113.0,3.9190402]
[1738116000568,0.7588,3113.3,3113.2,3.21212]
[1738116000774,6.12262902,3113.6,3113.2,3.21212]
[1738116000973,6.12262902,3113.6,3113.4,3.21191]
[1738116001384,6.12262902,3113.6,3113.2,3.21204]
[1738116002175,6.12262902,3113.6,3113.3,3.21201]
[1738116002383,6.12262902,3113.6,3113.4,3.21191]
[1738116003477,0.7579,3113.6,3113.4,3.21191]
[1738116004281,0.7579,3113.6,3113.2,3.21204]
[1738116004482,0.7748,3114.1,3113.8,3.21151]
[1738116004780,0.7748,3114.5,3114.0,3.2113]
[1738116004959,3.7748,3114.5,3114.0,3.2113]
[1738116005154,0.7748,3114.5,3114.0,3.2113]
[1738116005367,0.7748,3114.5,3114.1,3.24321892]
[1738116005549,0.7748,3114.5,3114.2,3.21108]
[1738116012816,0.7944,3114.7,3114.2,3.21108]
[1738116013014,5.36472902,3115.0,3114.5,3.21071]
[1738116013385,8.57502902,3115.0,3114.4,0.8274]
[1738116013581,8.57502902,3115.0,3114.4,4.03829]
[1738116013981,5.36472902,3115.0,3114.4,4.03829]
[1738116014186,0.8305,3114.5,3113.3,3.21192]
[1738116014364,3.21169,3113.7,3113.0,0.0321086]
[1738116014568,0.7948,3113.6,3113.0,3.2123]
[1738116014813,0.7948,3113.6,3112.9,3.21241]
[1738116014970,0.7948,3113.6,3113.0,3.21232]
[1738116015168,0.7948,3113.6,3113.1,0.642473]
[1738116015414,4.00654,3113.6,3113.1,0.642473]
[1738116015713,3.21181,3113.5,3113.1,0.642473]
[1738116015910,3.21181,3113.5,3113.0,3.21231]
[1738116016418,3.21181,3113.5,3112.9,3.2124]
[1738116016908,3.21181,3113.5,3112.8,6.24463991]
[1738116017270,0.7948,3113.6,3112.8,6.24463991]
[1738116017514,4.0066,3113.6,3112.9,3.21242]
[1738116017687,4.0066,3113.6,3112.8,6.24463991]
[1738116017688,0.7948,3113.6,3113.0,4.19009591]
[1738116018019,4.00652,3113.6,3113.0,4.19009591]
[1738116018869,4.00652,3113.6,3113.0,4.15797599]
[1738116019615,3.21157,3113.8,3113.2,0.7946]
[1738116020184,3.21157,3113.8,3113.2,4.00666]
[1738116020982,4.00172,3113.9,3113.3,3.21202]
[1738116021514,0.7903,3113.9,3113.4,3.24397774]
[1738116021720,4.01394,3114.2,3113.6,3.21169]
[1738116021917,3.21093,3114.4,3113.7,0.8283]
[1738116022220,3.21093,3114.4,3113.8,3.24354131]
[1738116022415,3.21093,3114.4,3113.7,1.23551024]
[1738116022624,3.21099,3114.3,3113.7,4.44711024]
[1738116023653,3.21093,3114.4,3113.7,4.44711024]
[1738116023952,3.21072,3114.6,3113.8,3.21144]
[1738116024138,3.21072,3114.6,3114.0,3.21122]
[1738116025256,3.21072,3114.6,3114.1,3.21119]
[1738116026571,3.2105,3114.8,3114.2,3.97501]
[1738116026854,8.57501902,3115.0,3114.3,3.21093]
[1738116027209,8.57501902,3115.0,3114.3,6.42183]
[1738116027406,8.57501902,3115.0,3114.3,3.2109]
[1738116027605,3.21048,3114.8,3114.3,3.2109]
[1738116027825,3.21048,3114.8,3114.2,0.764]
[1738116028245,3.21161,3113.7,3113.1,6.11094189]
[1738116028406,3.21235,3113.0,3112.3,3.21297]
[1738116028606,0.03243617,3112.9,3112.2,0.8262]
[1738116028863,0.03243617,3112.9,3112.3,0.403944]
[1738116028864,3.21265,3112.7,3112.3,0.403944]
[1738116029011,3.21277,3112.6,3111.9,3.21346]
[1738116029211,3.21262,3112.8,3112.1,3.21326]
[1738116031036,3.21262,3112.8,3112.2,0.03212832]